bitfinex/quotes_ETHUSD_20260213
["timestamp","ask_amount","ask_price","bid_price","bid_amount"]
[1771013004676,0.0011,2060.1,2059.6,30.0]
[1771013004855,0.0011,2060.1,2059.7,0.804]
[1771013005180,0.48495074,2060.1,2059.7,0.804]
[1771013005377,0.48385074,2060.0,2059.7,0.804]
[1771013005575,0.48385074,2060.0,2059.0,0.4961856]
[1771013005877,0.48385074,2060.0,2059.3,5.940925]
[1771013006580,0.48385074,2060.0,2059.1,12.94081]
[1771013007101,0.48385074,2060.0,2059.1,12.52481]
[1771013007588,0.48385074,2059.9,2059.1,10.643876]
[1771013007797,0.48385074,2059.9,2059.1,4.32796]
[1771013007957,0.48385074,2059.9,2059.1,3.461482]
[1771013008294,0.48385074,2059.9,2059.0,0.805]
[1771013008491,0.48385074,2059.9,2059.1,5.131963]
[1771013009285,0.48385074,2059.9,2059.1,2.781323]
[1771013009785,0.48385074,2059.7,2059.1,2.781323]
[1771013010823,0.48385074,2059.7,2059.2,2.549951]
[1771013010958,0.48385074,2059.7,2059.2,7.861111]
[1771013011301,0.48385074,2059.7,2059.1,3.82]
[1771013011494,0.48385074,2059.7,2059.2,5.948155]
[1771013011699,0.48430447,2059.6,2059.2,3.981846]
[1771013012180,0.48430447,2059.6,2059.1,3.82]
[1771013012482,0.48430447,2059.6,2059.2,5.816262]
[1771013012889,0.48430447,2059.6,2059.1,3.82]
[1771013013057,0.48430447,2059.6,2059.2,5.647197]
[1771013013392,0.48430447,2059.6,2059.2,4.295197]
[1771013013682,0.48430447,2059.6,2059.2,3.628409]
[1771013014610,0.48430447,2059.9,2059.2,3.628409]
[1771013015797,0.48430447,2059.9,2059.3,3.82]
[1771013016010,0.48430447,2059.9,2059.4,0.809]
[1771013016381,0.48430447,2059.8,2059.4,0.809]
[1771013017004,0.48430447,2059.8,2059.1,0.809]
[1771013017203,0.48430447,2059.8,2059.2,3.006785]
[1771013017406,0.48430447,2059.8,2059.2,2.753444]
[1771013017795,0.47035449,2059.6,2059.2,2.835254]
[1771013018002,0.47035449,2059.6,2059.1,0.809]
[1771013019701,0.47035449,2059.5,2059.1,0.809]
[1771013022020,0.47035449,2059.4,2058.9,12.674427]
[1771013022192,0.47035449,2059.4,2059.0,3.036288]
[1771013022387,0.47035449,2059.4,2058.9,3.82]
[1771013022587,0.47035449,2059.4,2059.0,4.832252]
[1771013022781,0.47035449,2059.4,2059.0,4.407339]
[1771013023344,0.47035449,2059.4,2059.0,3.910427]
[1771013023621,0.47035449,2059.4,2059.0,3.314726]
[1771013023801,0.47035449,2059.4,2058.9,3.82]
[1771013024014,1.68432926,2059.4,2059.0,4.714189]
[1771013024223,1.68432926,2059.4,2059.0,3.75241]
[1771013024525,1.68430244,2059.4,2059.0,3.75241]
[1771013024696,0.47035449,2059.3,2059.0,3.75241]
[1771013025021,0.47035449,2059.3,2058.9,3.82]
[1771013025229,0.47035449,2059.3,2059.0,3.086551]
[1771013025384,0.47035449,2059.3,2059.0,2.255815]
[1771013025584,0.47035449,2059.3,2058.9,3.82]
[1771013026007,1.6844,2059.3,2059.0,4.754059]
[1771013026210,1.6844,2059.3,2059.0,4.32493]
[1771013026410,1.6844,2059.3,2059.0,2.938208]
[1771013026629,1.6844,2059.3,2059.0,2.231171]
[1771013026899,0.47035449,2059.5,2059.0,2.231171]
[1771013027721,0.47035449,2059.5,2058.9,3.565939]
[1771013027892,0.47035449,2059.5,2058.9,2.512978]
[1771013028098,0.47035449,2059.3,2058.9,2.285984]
[1771013028326,0.47035449,2059.3,2058.9,4.530859]
[1771013028495,0.47035449,2059.3,2058.9,2.925898]
[1771013029604,1.04529281,2059.2,2058.9,5.98146]
[1771013029806,1.04529281,2059.1,2058.9,5.98146]
[1771013030038,1.04529281,2059.0,2058.8,0.001]
[1771013030342,0.47035449,2059.2,2058.9,9.608658]
[1771013030518,1.04525114,2059.1,2058.9,9.608658]
[1771013030721,1.04525114,2059.0,2058.8,0.001]
[1771013031026,0.47035449,2059.2,2058.9,9.18661]
[1771013031202,1.04525226,2059.1,2058.9,4.387656]
[1771013031406,1.04525226,2059.0,2058.8,0.001]
[1771013031599,0.47035449,2059.2,2058.9,8.933662]
[1771013031805,1.04526013,2059.1,2058.9,8.933662]
[1771013032107,1.04526013,2059.0,2058.8,0.001]
[1771013032432,0.47035449,2059.2,2058.9,7.718303]
[1771013032635,1.51559115,2059.1,2059.0,3.838477]
[1771013032927,1.51559115,2059.1,2058.9,9.720477]
[1771013033130,1.04523666,2059.0,2058.8,0.001]
[1771013033346,0.47035449,2059.1,2058.9,2.275113]
[1771013033538,1.04527541,2059.0,2058.8,0.001]
[1771013033731,0.47035449,2059.1,2058.9,9.015447]
[1771013033914,0.47035449,2059.1,2058.8,0.001]
[1771013033915,1.04527248,2059.0,2058.8,0.001]
[1771013034111,0.47035449,2059.1,2058.9,10.764359]
[1771013034307,1.04550102,2059.0,2058.8,0.001]
[1771013034510,0.47035449,2059.1,2058.9,9.199869]
[1771013034710,1.0455052,2059.0,2058.8,0.001]
[1771013034908,0.47035449,2059.1,2058.9,8.283634]
[1771013035106,0.47035449,2058.9,2058.8,7.181555]
[1771013035410,1.51581115,2058.9,2058.8,6.280939]
[1771013036344,1.51581115,2058.9,2058.8,4.482287]
[1771013036523,1.51581115,2058.9,2058.8,3.722465]
[1771013037135,1.51581115,2058.9,2058.8,0.001]
[1771013037339,1.51581115,2058.9,2058.8,2.887872]
[1771013037652,1.51581115,2058.9,2058.8,2.105705]
[1771013038208,1.51581115,2058.9,2058.8,0.001]
[1771013039832,1.51581115,2058.9,2058.8,2.606755]
[1771013040139,1.51581115,2058.9,2058.8,2.398457]
[1771013040781,0.47035449,2059.3,2058.8,2.398457]
[1771013040911,0.47035449,2059.3,2058.8,0.001]
[1771013041115,0.47412636,2059.4,2058.8,0.001]
[1771013042238,0.47522636,2059.6,2058.8,4.27312921]
[1771013042446,0.47522636,2059.6,2058.9,3.82]
[1771013042652,0.47522636,2059.6,2059.0,0.45212921]
[1771013042653,0.0011,2059.6,2059.0,0.45212921]
[1771013043215,0.0011,2059.6,2059.2,0.45212921]
[1771013043808,0.0011,2059.6,2058.9,5.08612921]
[1771013044012,0.0011,2059.6,2059.0,10.550539]
[1771013044213,0.0011,2059.6,2059.1,0.45212921]
[1771013044515,0.0011,2060.1,2059.2,0.45212921]
[1771013044733,0.0011,2060.1,2059.3,21.249723]
[1771013044957,0.0011,2060.1,2059.4,0.814]
[1771013045552,0.47522636,2060.1,2059.4,0.814]
[1771013046460,0.0011,2060.1,2059.5,0.45212921]
[1771013046663,0.0011,2060.2,2059.7,0.45212921]
[1771013048734,0.0011,2060.2,2059.5,1.32712921]
[1771013049073,0.47522636,2060.2,2059.7,6.724245]
[1771013049277,0.47522636,2060.2,2059.5,0.875]
[1771013049451,0.47522636,2060.2,2059.6,5.834585]
[1771013049778,0.47522636,2060.2,2059.6,6.658052]
[1771013049943,0.47522636,2060.2,2059.6,2.787039]
[1771013050139,0.47522636,2060.2,2059.5,0.875]
[1771013050381,0.47522636,2060.2,2059.6,2.30992]
[1771013050901,0.47412636,2060.1,2059.5,0.875]
[1771013051866,0.47412636,2060.1,2059.6,2.502414]
[1771013052071,0.47412636,2060.1,2059.6,2.086225]
[1771013052284,0.47412636,2060.1,2059.6,3.658244]
[1771013052964,0.0011,2060.2,2059.6,3.658244]
[1771013053299,0.0011,2060.2,2059.6,0.45212921]
[1771013054659,0.0011,2060.2,2059.6,12.433167]
[1771013055100,0.47522636,2060.2,2059.6,4.792598]
[1771013055399,0.47522636,2060.2,2059.5,0.875]
[1771013057518,1.68870278,2060.2,2059.5,0.875]
[1771013057810,0.47412636,2060.1,2059.5,0.875]
[1771013060412,0.0011,2060.2,2059.5,0.875]
[1771013060706,0.0011,2060.2,2059.6,0.45212921]
[1771013061406,0.47412636,2060.1,2059.4,0.814]
[1771013061576,0.47412636,2060.1,2059.5,3.517367]
[1771013061897,0.47412636,2060.1,2059.5,6.426223]
[1771013062193,0.47412636,2060.1,2059.5,3.822067]
[1771013062903,0.47412636,2060.1,2059.5,3.82]
[1771013070712,0.0011,2060.2,2059.6,0.45212921]
[1771013071117,0.0011,2060.2,2059.7,0.45378503]
[1771013071288,0.0011,2060.4,2059.9,0.45378503]
[1771013072677,0.0011,2060.4,2059.8,0.817]
[1771013073688,0.0011,2060.4,2059.8,1.27078503]
[1771013074079,0.0011,2060.4,2059.9,0.45378503]
[1771013076230,0.0011,2060.4,2059.9,4.27378503]
[1771013076391,0.0011,2060.6,2060.2,0.49192127]
[1771013076592,0.0011,2060.8,2060.3,1.30892127]
[1771013081946,0.46007862,2060.8,2060.3,0.817]
[1771013082125,0.46007862,2060.8,2060.2,0.816]
[1771013082327,0.46007862,2060.8,2060.3,6.811382]
[1771013082724,0.0011,2060.8,2060.3,7.30330327]
[1771013083027,0.0011,2060.8,2060.3,0.49192127]
[1771013083814,0.0011,2061.1,2060.7,30.0]
[1771013084030,0.45897862,2061.6,2060.8,0.816]
[1771013084236,1.21265105,2061.6,2060.8,0.816]
[1771013084437,0.45897862,2061.5,2060.8,0.816]
[1771013087019,0.0011,2061.1,2060.8,0.816]
[1771013090921,0.0011,2061.1,2060.8,0.07536089]
[1771013092730,0.46007862,2061.1,2060.8,0.07536089]
[1771013094756,0.0011,2061.1,2060.8,0.07536089]
[1771013097354,0.46007862,2061.1,2060.8,0.07536089]
[1771013098155,0.46007862,2061.1,2060.2,1.36592127]
[1771013098323,0.45897862,2061.0,2060.2,0.874]
[1771013098528,0.45897862,2060.6,2059.9,1.30392127]
[1771013098724,0.45897862,2060.4,2060.0,6.228735]
[1771013098927,0.45897862,2060.4,2059.9,0.812]
[1771013099136,0.45897862,2060.4,2059.7,15.621183]
[1771013099340,0.45897862,2060.4,2059.7,14.823889]
[1771013100259,0.45897862,2060.7,2060.3,0.001]
[1771013100560,0.45897862,2061.0,2060.0,0.49192127]
[1771013100736,0.45897862,2061.0,2060.1,0.814]
[1771013100937,0.45897862,2061.0,2060.2,30.23340608]
[1771013101252,0.0011,2061.1,2060.3,30.0]
[1771013101562,0.0011,2061.1,2060.4,0.45346708]
[1771013101940,0.0011,2061.1,2060.3,30.0]
[1771013102142,0.45939896,2061.1,2060.3,30.0]
[1771013102342,0.45939896,2061.1,2060.3,9.114862]
[1771013102569,0.45939896,2061.1,2060.3,8.684062]
[1771013102738,0.45829896,2061.0,2060.3,8.684062]
[1771013102943,0.0011,2061.1,2060.3,6.58963108]
[1771013103149,0.0011,2061.1,2060.3,0.45346708]
[1771013103557,0.45939896,2061.1,2060.3,17.565349]
[1771013103859,0.45939896,2061.1,2060.3,11.112494]
[1771013104567,0.45939896,2061.1,2060.3,9.032607]
[1771013106148,0.45939896,2061.1,2060.4,3.82]
[1771013106459,0.45939896,2061.1,2060.5,0.822]
[1771013107335,0.45829896,2061.0,2060.5,0.822]
[1771013108366,0.45829896,2061.0,2060.4,3.82]
[1771013109565,0.45829896,2061.0,2060.2,5.516]
[1771013111253,0.45829896,2060.9,2060.2,5.516]
[1771013114651,0.45829896,2060.8,2060.2,5.516]
[1771013114975,0.45829896,2060.8,2060.1,3.82]
[1771013115179,0.45829896,2060.8,2060.2,2.569926]
[1771013115773,0.45829896,2060.6,2060.2,2.569926]
[1771013115945,0.45829896,2060.6,2060.1,5.905849]
[1771013116145,0.45829896,2061.0,2060.2,14.948199]
[1771013116346,0.45829896,2061.0,2060.2,5.663766]
[1771013116853,0.45829896,2061.0,2060.2,5.41339]
[1771013117255,0.45829896,2061.0,2060.2,2.505243]
[1771013117656,0.45829896,2060.8,2060.2,2.505243]
[1771013118265,0.45829896,2060.8,2060.2,2.209144]
[1771013119655,0.45829896,2060.7,2060.2,2.209144]
[1771013121670,0.45829896,2061.0,2060.2,2.209144]
[1771013123787,0.45829896,2060.8,2060.2,2.209144]
[1771013123991,0.45829896,2061.0,2060.2,2.209144]
[1771013124200,0.45829896,2061.0,2060.3,0.827]
[1771013124494,0.0011,2061.3,2060.5,0.45346708]
[1771013124855,0.0011,2061.3,2060.3,0.827]
[1771013124856,0.45829896,2061.2,2060.4,4.045495]
[1771013125061,0.45829896,2061.2,2060.3,0.827]
[1771013125692,0.45829896,2061.0,2060.3,0.827]
[1771013125992,0.45829896,2061.0,2060.2,0.874]
[1771013126882,0.45829896,2060.8,2060.0,0.001]
[1771013127095,0.45829896,2060.8,2060.1,7.458731]
[1771013127297,0.45829896,2060.8,2060.1,7.226902]
[1771013127697,0.45829896,2060.7,2060.1,7.226902]
[1771013127897,1.67148882,2060.7,2060.1,7.226902]
[1771013128201,0.45829896,2060.6,2060.1,7.226902]
[1771013128399,0.45829896,2060.6,2060.0,0.001]
[1771013128700,1.70029896,2060.8,2060.1,12.551223]
[1771013128874,1.70029896,2060.8,2060.1,10.11519]
[1771013129068,1.70029896,2060.8,2060.1,9.370748]
[1771013129069,0.45829896,2060.8,2060.1,9.370748]
[1771013129372,1.67142584,2060.8,2060.1,9.370748]
[1771013130204,1.67142584,2060.8,2060.2,5.915586]
[1771013130776,0.45829896,2060.8,2060.2,5.915586]
[1771013131096,1.67142488,2060.8,2060.2,5.915586]
[1771013131494,0.49595972,2061.0,2060.2,5.915586]
[1771013131724,0.49595972,2061.0,2060.3,3.82]
[1771013132304,0.0011,2061.3,2060.6,0.47325923]
[1771013132506,0.0011,2061.3,2060.6,1.30225923]
[1771013132674,0.49705972,2061.3,2060.6,0.829]
[1771013133005,0.49595972,2061.2,2060.6,0.829]
[1771013133521,0.49595972,2061.2,2060.3,0.829]
[1771013134207,1.21294454,2061.1,2060.3,0.829]
[1771013134370,0.49595972,2061.1,2060.3,0.829]
[1771013136385,0.4525766,2061.0,2060.3,0.829]
[1771013139989,1.66560824,2061.0,2060.3,0.829]
[1771013140875,0.4525766,2061.0,2060.3,0.829]
[1771013141103,1.66558816,2061.0,2060.3,0.829]
[1771013141403,1.66558029,2061.0,2060.3,0.829]
[1771013141905,0.4525766,2061.0,2060.4,3.82]
[1771013142362,1.66558372,2061.0,2060.4,3.82]
[1771013142479,0.4525766,2060.9,2060.1,3.82]
[1771013142813,0.4525766,2060.7,2060.3,4.009982]
[1771013143890,0.4525766,2060.7,2060.2,3.82]
[1771013144123,0.4525766,2060.7,2060.3,2.490771]
[1771013144436,0.4525766,2060.7,2060.2,3.82]
[1771013145121,1.66579422,2060.7,2060.2,3.82]
[1771013145430,0.4525766,2060.6,2060.3,2.742366]
[1771013145629,0.4525766,2060.6,2060.2,9.206089]
[1771013146138,0.4525766,2060.6,2060.2,8.464755]
[1771013146351,0.4525766,2060.6,2060.3,3.581069]
[1771013146545,0.4525766,2060.6,2060.2,5.577089]
[1771013148545,0.4525766,2060.8,2060.2,5.577089]
[1771013148848,1.6935766,2060.8,2060.1,13.01703]
[1771013149341,0.4525766,2061.0,2060.2,0.48876074]
[1771013149548,1.241,2061.1,2060.3,16.572509]
[1771013149735,0.4525766,2061.2,2060.3,0.48876074]
[1771013149909,1.66546262,2061.2,2060.3,0.48876074]
[1771013150550,0.0011,2061.3,2060.4,30.0]
[1771013150709,0.0011,2061.3,2060.6,24.20176774]
[1771013150914,0.0011,2061.3,2060.6,0.48876074]
[1771013151118,1.21392746,2061.3,2060.4,16.838626]
[1771013151325,0.0011,2061.3,2060.3,21.769667]
[1771013151518,0.0011,2061.3,2060.4,22.951337]
[1771013151717,0.0011,2061.3,2060.3,0.48876074]
[1771013151718,0.4536766,2061.3,2060.3,10.04928]
[1771013151923,0.4536766,2061.3,2060.2,0.831]
[1771013152146,0.4536766,2061.3,2060.3,3.990093]
[1771013153545,0.4525766,2061.1,2060.3,3.990093]
[1771013153731,0.4525766,2061.1,2060.3,13.096351]
[1771013153935,0.4525766,2061.1,2060.3,12.618267]
[1771013154322,0.4525766,2061.1,2060.3,11.614959]
[1771013155457,1.66553892,2061.1,2060.3,11.614959]
[1771013155649,1.04564437,2061.0,2060.3,11.614959]
[1771013155849,1.04564437,2060.9,2060.3,11.614959]
[1771013156048,1.04564437,2060.8,2060.3,11.614959]
[1771013156248,1.04564437,2060.7,2060.3,11.614959]
[1771013156560,0.4525766,2061.0,2060.3,9.082367]
[1771013156760,1.0455043,2060.9,2060.3,9.082367]
[1771013157055,1.0455043,2060.8,2060.3,9.082367]
[1771013157255,1.0455043,2060.7,2060.3,9.082367]
[1771013157438,1.0455043,2060.6,2060.3,9.082367]
[1771013157632,1.66559831,2061.0,2060.3,9.082367]
[1771013157830,1.04569327,2060.9,2060.3,9.082367]
[1771013158030,1.04569327,2060.8,2060.3,9.082367]
[1771013158253,1.04569327,2060.7,2060.3,7.685226]
[1771013158554,1.04569327,2060.6,2060.3,3.184493]
[1771013158854,0.4525766,2060.9,2060.3,6.654981]
[1771013159057,1.49848599,2060.8,2060.3,6.654981]
[1771013159249,1.04590939,2060.7,2060.3,4.66222]
[1771013159560,0.4525766,2060.8,2060.3,4.66222]
[1771013159561,1.04590939,2060.6,2060.3,4.66222]
[1771013159739,1.04590939,2060.5,2060.3,4.66222]
[1771013159941,0.4525766,2060.8,2060.3,4.66222]
[1771013160252,1.04605001,2060.7,2060.3,4.66222]
[1771013160447,1.04605001,2060.6,2060.3,9.44936]
[1771013160623,1.04605001,2060.5,2060.2,0.831]
[1771013160828,1.04605001,2060.4,2060.3,2.474254]
[1771013162430,1.04605001,2060.4,2060.3,6.294254]
[1771013162631,0.4525766,2060.8,2060.3,3.82]
[1771013162832,1.238,2061.1,2060.3,4.3187657]
[1771013163066,1.73394855,2061.1,2060.3,4.3187657]
[1771013164126,0.49594855,2061.1,2060.3,4.3187657]
[1771013164335,1.70893082,2061.1,2060.3,4.3187657]
[1771013165064,0.49594855,2061.1,2060.3,4.3187657]
[1771013166560,0.49594855,2061.1,2060.4,0.4987657]
[1771013167959,0.49594855,2060.9,2060.3,3.82]
[1771013168463,0.49594855,2060.9,2060.2,0.831]
[1771013168464,0.49594855,2060.9,2060.4,3.82]
[1771013168761,0.49594855,2060.7,2060.3,2.712981]
[1771013168963,0.49594855,2060.7,2060.2,0.831]
[1771013169161,0.49594855,2060.9,2060.3,3.641248]
[1771013169365,1.70901199,2060.9,2060.3,3.641248]
[1771013169870,0.49594855,2060.8,2060.3,3.641248]
[1771013170835,1.70910733,2060.8,2060.3,2.57662]
[1771013171034,0.49594855,2060.7,2060.3,2.57662]
[1771013171452,0.49594855,2060.7,2060.2,0.831]
[1771013171663,0.49594855,2060.7,2060.0,0.001]
[1771013172947,0.49594855,2060.5,2060.0,0.001]
[1771013174975,1.70925724,2060.5,2060.0,0.001]
[1771013175350,0.49594855,2060.5,2060.0,0.001]
[1771013176685,1.70925134,2060.5,2060.0,0.001]
[1771013177185,1.70925134,2060.5,2060.0,3.67339595]
[1771013180951,0.49594855,2060.4,2060.0,3.67339595]
[1771013182981,0.49594855,2060.3,2060.0,3.67339595]
[1771013183199,1.21335691,2060.4,2060.0,3.67339595]
[1771013183365,1.70930546,2060.4,2060.0,3.67339595]
[1771013184998,0.49594855,2060.4,2060.0,3.67339595]
[1771013185169,4.85307039,2060.6,2060.0,3.67339595]
[1771013185170,0.49594855,2060.6,2060.0,3.67339595]
[1771013188200,1.70924629,2060.5,2060.0,3.67339595]
[1771013188697,0.49594855,2060.4,2060.0,3.67339595]
[1771013190101,1.70934833,2060.4,2060.0,3.67339595]
[1771013190308,0.49594855,2060.3,2060.0,3.67339595]
[1771013192883,1.70938711,2060.3,2060.0,3.67339595]
[1771013193607,1.21343856,2060.3,2060.0,3.67339595]
[1771013193905,0.46176718,2060.2,2060.0,3.67339595]
[1771013194109,0.46176718,2060.0,2059.8,0.001]
[1771013194318,1.25,2060.2,2059.9,4.333996]
[1771013194484,1.25,2060.2,2059.8,0.001]
[1771013194808,1.71176718,2060.2,2059.9,3.153321]
[1771013196514,2.92526661,2060.2,2059.9,3.153321]
[1771013196917,4.85370011,2060.3,2059.9,3.153321]
[1771013196918,1.254,2060.3,2059.9,3.153321]
[1771013198006,1.70941068,2060.3,2059.9,3.153321]
[1771013198510,2.92284842,2060.3,2059.9,3.153321]
[1771013199530,2.92684842,2060.3,2059.9,3.153321]
[1771013199921,2.92684842,2060.3,2059.9,2.320655]
[1771013200117,0.45541068,2060.2,2059.8,2.77594999]
[1771013200291,0.45541068,2060.2,2059.9,5.444175]
[1771013200640,0.45541068,2060.2,2059.6,3.821]
[1771013200641,7.64557066,2060.1,2059.6,3.821]
[1771013200926,8.90357066,2060.3,2059.7,5.967709]
[1771013201134,1.262,2060.2,2059.8,12.37149602]
[1771013201341,1.262,2060.2,2059.9,3.608548]
[1771013201543,8.10098134,2060.3,2059.7,4.884194]
[1771013201708,9.36298134,2060.3,2059.7,4.884194]
[1771013201909,0.45541068,2060.2,2059.7,2.454035]
[1771013202402,0.45541068,2060.2,2059.6,0.001]
[1771013202606,8.10098134,2060.2,2059.7,5.066537]
[1771013202829,9.31446276,2060.2,2059.7,5.066537]
[1771013203218,0.45541068,2060.1,2059.7,5.066537]
[1771013203415,1.21338658,2060.4,2059.7,5.53578302]
[1771013203620,1.21338658,2060.4,2059.8,18.595272]
[1771013203621,1.264,2060.3,2059.8,18.595272]
[1771013203817,1.264,2060.3,2059.9,11.345471]
[1771013204909,1.21328498,2060.6,2059.9,11.81471702]
[1771013205107,1.265,2060.5,2059.9,0.46924602]
[1771013205517,1.72041068,2060.5,2059.7,1.32024602]
[1771013205719,0.0011,2060.8,2060.3,0.46924602]
[1771013205946,0.0011,2060.8,2060.5,21.169517]
[1771013206452,0.0011,2060.8,2060.5,21.63876302]
[1771013206738,0.0011,2060.9,2060.4,0.854]
[1771013206739,0.0011,2061.3,2060.7,0.46924602]
[1771013206909,0.0011,2061.3,2060.8,0.46924602]
[1771013207110,0.0011,2061.5,2060.8,0.46924602]
[1771013207311,1.66773281,2062.2,2061.2,0.46924602]
[1771013207509,1.66773281,2062.2,2061.4,0.46924602]
[1771013207727,1.66773281,2062.2,2061.5,0.857]
[1771013208122,0.45541068,2062.1,2061.3,0.532]
[1771013208632,0.45541068,2062.1,2060.8,1.34324602]
[1771013208830,0.45541068,2061.9,2060.9,0.56]
[1771013209033,0.45541068,2061.7,2060.9,0.56]
[1771013210928,1.21265036,2061.6,2060.9,0.56]
[1771013211130,1.66803822,2061.7,2060.9,0.56]
[1771013212751,0.45541068,2061.6,2060.9,0.56]
[1771013212950,0.45541068,2061.6,2060.8,0.874]
[1771013212951,1.21270919,2061.5,2060.8,0.874]
[1771013213162,1.66811987,2061.5,2060.8,0.874]
[1771013213463,0.45541068,2061.5,2060.8,0.874]
[1771013214578,2.47569813,2061.6,2060.8,0.874]
[1771013215089,2.93110881,2061.6,2060.8,0.874]
[1771013216574,1.21247393,2061.9,2061.0,0.46924602]
[1771013216778,1.66788461,2061.9,2061.0,0.46924602]
[1771013217090,0.45541068,2061.8,2060.9,7.887423]
[1771013217289,0.45541068,2061.8,2060.9,0.46924602]
[1771013217766,0.45541068,2061.8,2060.8,0.874]
[1771013218167,1.66800223,2061.7,2060.8,0.874]
[1771013218385,1.66800223,2061.7,2060.8,1.34324602]
[1771013220667,1.66800223,2061.7,2060.9,0.47711455]
[1771013223966,0.0011,2062.0,2061.1,0.47711455]
[1771013224188,0.0011,2062.0,2061.0,30.0]
[1771013224189,1.21352394,2062.0,2061.3,0.47711455]
[1771013224674,1.21352394,2062.0,2060.9,0.47711455]
[1771013224965,0.49776189,2061.9,2060.9,0.47711455]
[1771013226976,1.21253273,2061.8,2060.9,0.47711455]
[1771013227173,1.71029462,2061.8,2060.9,0.47711455]
[1771013227401,0.49776189,2061.8,2060.9,0.47711455]
[1771013228199,0.49886189,2062.0,2060.9,0.47711455]
[1771013228404,1.75786189,2062.0,2061.1,0.47711455]
[1771013228573,2.97028508,2062.0,2061.1,0.47711455]
[1771013228905,10.60488404,2062.0,2061.1,0.47711455]
[1771013231787,7.63459896,2061.8,2061.1,0.47711455]
[1771013232894,0.0011,2062.0,2061.2,0.47711455]
[1771013235605,0.49886189,2062.0,2061.2,0.47711455]
[1771013237001,0.49886189,2062.0,2061.0,0.47711455]
[1771013237209,0.49886189,2062.0,2060.8,0.47711455]
[1771013237372,0.49886189,2062.0,2060.7,0.874]
[1771013237373,0.49776189,2061.8,2060.7,0.874]
[1771013237703,0.49776189,2061.2,2060.6,0.001]
[1771013237901,0.49776189,2061.0,2060.4,0.001]
[1771013238103,0.49776189,2060.9,2060.0,0.001]
[1771013238308,0.49776189,2060.6,2060.0,0.001]
[1771013238604,0.49776189,2060.7,2060.0,0.001]
[1771013238909,1.261,2060.6,2060.0,0.001]
[1771013239103,1.261,2060.5,2060.0,0.001]
[1771013241631,2.47431451,2060.5,2060.0,0.001]
[1771013241835,0.49776189,2060.4,2060.0,0.001]
[1771013242200,0.49776189,2060.4,2059.6,0.001]
[1771013242795,0.49776189,2060.4,2059.5,0.47811455]
[1771013242796,0.49776189,2060.3,2059.5,0.001]
[1771013242996,0.49776189,2059.9,2059.3,0.001]
[1771013243203,9.15950042,2060.0,2059.0,0.001]
[1771013243204,0.49776189,2059.7,2059.0,0.001]
[1771013243825,1.21382792,2059.6,2059.0,0.001]
[1771013244138,1.21382792,2059.6,2058.8,0.001]
[1771013244139,0.49776189,2059.5,2058.8,0.001]
[1771013247320,1.2139458,2059.4,2058.8,0.001]
[1771013247632,1.262,2059.3,2058.8,0.001]
[1771013249356,1.262,2059.3,2058.6,0.001]
[1771013249357,0.49776189,2059.2,2058.6,0.001]
[1771013249504,0.49776189,2059.2,2058.4,0.001]
[1771013249907,0.49776189,2059.2,2058.3,0.001]
[1771013250937,0.49776189,2059.2,2058.5,0.001]
[1771013251139,0.49776189,2059.2,2058.3,0.001]
[1771013251341,0.46333179,2058.8,2057.7,0.49622321]
[1771013251554,1.263,2058.7,2057.7,0.49622321]
[1771013252115,1.263,2058.7,2057.9,0.001]
[1771013252645,0.46333179,2059.0,2057.9,0.41402321]
[1771013252839,1.263,2058.8,2057.9,0.41402321]
[1771013256347,2.47729968,2058.8,2057.9,0.41402321]
[1771013256556,2.95699317,2058.8,2057.9,0.41402321]
[1771013257348,1.263,2058.8,2057.9,0.41402321]
[1771013257765,2.47730784,2058.8,2057.9,0.41402321]
[1771013257931,1.263,2058.8,2057.9,0.41402321]
[1771013259273,0.47969349,2059.6,2058.1,0.46649222]
[1771013259434,3.4344875,2059.7,2058.3,0.46649222]
[1771013259769,0.47969349,2059.6,2058.3,0.46649222]
[1771013259941,0.47969349,2059.4,2058.3,0.46649222]
[1771013260337,1.21400475,2059.3,2058.3,0.46649222]
[1771013261564,1.69369824,2059.3,2058.3,0.46649222]
[1771013261951,0.47969349,2059.3,2058.3,0.46649222]
[1771013262158,1.21399435,2059.4,2058.3,0.46649222]
[1771013262461,0.66654973,2059.8,2058.3,0.46649222]
[1771013262663,2.4738126,2059.7,2058.3,0.46649222]
[1771013262838,2.95350609,2059.7,2058.3,0.46649222]
[1771013263041,0.47969349,2059.6,2058.3,0.46649222]
[1771013263960,1.73969349,2059.6,2058.3,0.46649222]
[1771013264434,1.73969349,2059.6,2058.2,0.875]
[1771013264435,2.95353416,2059.6,2058.5,0.46649222]
[1771013264643,2.95353416,2059.6,2058.2,0.875]
[1771013264644,2.08974025,2060.0,2058.7,0.46649222]
[1771013264847,0.8761,2060.0,2058.8,0.46649222]
[1771013265065,0.8761,2060.0,2058.9,0.46649222]
[1771013265855,2.08969583,2060.0,2058.9,0.46649222]
[1771013266873,2.56938932,2060.0,2058.9,0.46649222]
[1771013269371,2.56939018,2060.0,2058.9,0.46649222]
[1771013270091,2.56939018,2060.0,2059.0,0.46649222]
[1771013273372,1.35579349,2060.0,2059.0,0.46649222]
[1771013273569,0.0011,2060.0,2059.2,0.46649222]
[1771013273783,0.0011,2060.0,2059.3,0.46649222]
[1771013275355,0.0011,2060.0,2059.3,4.28649222]
[1771013275752,0.48079349,2060.0,2059.3,3.82]
[1771013277480,1.69334463,2059.9,2059.3,3.82]
[1771013279270,0.0011,2060.0,2059.3,0.46649222]
[1771013280480,0.0011,2060.0,2059.5,0.46649222]
[1771013281486,0.0011,2060.0,2059.2,0.834]
[1771013281990,0.49708514,2060.0,2059.0,0.48382303]
[1771013283388,1.70963628,2059.9,2059.0,0.48382303]
[1771013283908,1.2601,2060.0,2059.0,0.48382303]
[1771013284062,2.47369363,2060.0,2059.0,0.48382303]
[1771013285488,2.47369363,2060.0,2059.0,4.30382303]
[1771013285799,1.21469363,2060.0,2059.2,0.48382303]
[1771013286170,1.21469363,2060.0,2059.3,3.82]
[1771013286902,0.0011,2060.0,2059.3,3.82]